Cogmind - Beta 9.3 @@@ ROGUE MODE // 2020.01.02 @ 02:00:44 // Winter2019/RPGLIKE Player: FontPeg Result: Destroyed by S-10 Pest with Light Assault Rifle Performance ------------- Evolutions (0) 0 Regions Visited (1) 200 Robots Destroyed (7) 35 Value Destroyed (118) 118 Prototype IDs (0) 0 Alien Tech Used (0) 0 Bonus (0) 0 TOTAL SCORE: 353 Bonus ------- None Cogmind --------- Core Integrity 0/900 Matter 276/300 Energy 408/450 System Corruption 0% Temperature Cool (0) Movement Rolling (90) Location -10/Materials Parts ------- > --- POWER (1) -------- Ion Engine > --- PROPULSION (2) --- Wheel Compact Wheel > --- UTILITY (2) ------ Medium Battery > --- WEAPON (2) ------- EMP Blaster EMP Blaster > --- INVENTORY (1) ---- Hacking Suite Peak State ------------ > --- POWER ------------ Ion Engine > --- PROPULSION ------- Wheel Compact Wheel > --- UTILITY ---------- Medium Battery > --- WEAPON ----------- EMP Blaster EMP Blaster > --- INVENTORY -------- Hacking Suite [Rating: 8] Favorites ----------- Power Ion Engine Engine Ion Engine Propulsion Wheel Wheel Wheel Utility Medium Battery Storage Medium Battery Protection Weapon Shielding Weapon Medium Laser Energy Gun Medium Laser Launcher EMP Blaster Build | -11 -10 ------- Run | Scr Mat Slots Evolved 3 | 3 . Power . | . . Propulsion 1 | 1 . Utility 1 | 1 . Weapon 1 | 1 . Parts Attached 9 | 5 4 Power 1 | 1 . Engine 1 | 1 . Core . | . . Reactor . | . . Propulsion 2 | 2 . Treads . | . . Leg . | . . Wheel 2 | 2 . Hover . | . . Flight . | . . Utility 2 | . 2 Device . | . . Storage 1 | . 1 Processor . | . . Hackware . | . . Protection 1 | . 1 Artifact . | . . Weapon 4 | 2 2 Energy Gun 2 | 2 . Energy Cannon . | . . Ballistic Gun . | . . Ballistic Cannon . | . . Launcher 2 | . 2 Special Weapon . | . . Impact Weapon . | . . Slashing Weapon . | . . Piercing Weapon . | . . Special Melee Weapon . | . . Unidentified Prototypes . | . . Parts Lost 3 | . 3 Power . | . . Propulsion . | . . Utility 1 | . 1 Weapon 2 | . 2 Highest Loss Streak 3 | . 3 Average Slot Usage (%) 87 | . 87 Engine 14 | . 14 Wheel 28 | . 28 Storage 9 | . 9 Protection 8 | . 8 Energy Gun 24 | . 24 Naked Turns . | . . Heaviest Build 12 | 9 12 Greatest Support 26 | 26 26 Greatest Overweight (x) . | . . Average Overweight (x) . | . . Largest Inventory Capacity 1 | 1 1 Average Capacity 1 | 1 1 Most Carried 1 | 1 1 Average Carried . | . 1 Final Capacity 1 | 1 1 Final Carried 1 | 1 1 Class Distribution -------------------- 100% | Mutant Dominant Class ---------------- Mutant | -10/Materials Resources | -11 -10 ----------- Run | Scr Mat Matter Collected 260 | 232 28 Remotely . | . . Salvage Created 183 | . 183 Parts 13 | . 13 Haulers Intercepted . | . . Recyclers Shooed . | . . Parts Field Recycled . | . . Retrieved Matter . | . . Parts Self-Destructed . | . . Prevented . | . . Kills | -11 -10 ------- Run | Scr Mat Combat Hostiles Destroyed 7 | . 7 Guns 4 | . 4 AOE 3 | . 3 Classes Destroyed 2 | . 2 Swarmer 5 | . 5 Grunt 2 | . 2 Best Kill Streak 6 | . 6 Combat Bots Only 6 | . 6 Max Kills in Single Turn 1 | . 1 Gunslinging . | . . Exploded 1 | . 1 Melee . | . . Uniques/NPCs Destroyed . | . . Combat | -11 -10 -------- Run | Scr Mat Damage Taken 1232 | . 1232 Core 950 | . 950 Absorbed by Shields . | . . Redirected to Core 629 | . 629 Core Remaining (%) 100 | 100 . Volleys Fired 14 | . 14 Largest 2 | . 2 Hottest 90 | . 90 Shots Fired 25 | . 25 Gun 24 | . 24 Cannon . | . . Launcher 1 | . 1 Special . | . . Kinetic . | . . Thermal 13 | . 13 Explosive . | . . Electromagnetic 12 | . 12 Robot Hit Streak 8 | . 8 Robot Miss Streak 3 | . 3 Penetration Max . | . . Secondary Targets 1 | . 1 Max Gunslinging Chain 1 | . 1 Shots Hit Robots 16 | . 16 Core Hits 14 | . 14 Critical Hits . | . . Critical Kills . | . . Critical Parts Destroyed . | . . Melee Attacks . | . . Impact . | . . Slashing . | . . Piercing . | . . Sneak Attacks . | . . Combat Hostiles . | . . Follow-up Attacks . | . . Damage Inflicted 347 | . 347 Guns 177 | . 177 Cannons . | . . Explosions 159 | . 159 Melee . | . . Ramming 11 | . 11 Kinetic . | . . Thermal 203 | . 203 Explosive . | . . Electromagnetic 133 | . 133 Impact . | . . Slashing . | . . Piercing . | . . Highest Corruption . | . . Average Corruption . | . . Corruption Purged . | . . Overload Shots . | . . Overflow Damage . | . . Projectiles . | . . Explosions . | . . Melee . | . . Knockbacks . | . . Impact . | . . Kinetic . | . . Secondary . | . . Self-Inflicted Damage 68 | . 68 Shots 2 | . 2 Rammed 5 | . 5 Targets Rammed 5 | . 5 Kicked . | . . Crushed . | . . Highest Temperature 66 | . 66 Average Temperature 31 | . 31 Received Heat Transfer 240 | . 240 Siege Activations . | . . Robots Corrupted . | . . Combat Hostiles . | . . Parts Fried . | . . Impact Corruptions . | . . Robots Melted . | . . Combat Hostiles . | . . Parts Melted . | . . Heat Transferred 446 | . 446 Parts Sabotaged . | . . Parts Stolen . | . . Parts Stripped . | . . Power Chain Reactions 2 | . 2 Missiles Intercepted . | . . Alert | -11 -10 ------- Run | Scr Mat Peak Influence 131 | . 131 Average Influence 36 | . 43 Maximum Alert Level . | . . Low Security (%) 100 | 100 100 Level 1 . | . . Level 2 . | . . Level 3 . | . . Level 4 . | . . Level 5 . | . . High Security . | . . Max Security . | . . Squads Dispatched 1 | . 1 Investigation . | . . Extermination . | . . Reinforcement 1 | . 1 Assault . | . . Garrison . | . . Intercept . | . . Construction Impeded . | . . Haulers Reinforced . | . . Stealth | -11 -10 --------- Run | Scr Mat Distress Signals . | . . Communications Jammed . | . . Distress Signals . | . . Times Spotted 20 | . 20 Peak Tracking Total 12 | . 12 Tactical Retreats 3 | . 3 Traps | -11 -10 ------- Run | Scr Mat Traps Triggered . | . . Indirectly . | . . Trap Hack Attempts . | . . Triggered . | . . Disarmed . | . . Reprogrammed . | . . Reused . | . . Traps Extracted . | . . Installed . | . . Triggered . | . . Machines | -11 -10 ---------- Run | Scr Mat Machines Disabled . | . . Max in Single Turn . | . . Machines Sabotaged . | . . Garrisons Compromised . | . . Overloaded Fab Kills . | . . Fab Network Shutdowns . | . . Hacking | -11 -10 --------- Run | Scr Mat Machines Accessed 5 | . 5 Terminals 5 | . 5 Fabricators . | . . Repair Stations . | . . Recycling Units . | . . Scanalyzers . | . . Garrison Access . | . . Total Hacks 12 | . 12 Successful 7 | . 7 Failed 5 | . 5 Catastrophic . | . . Database Lockouts . | . . Manual 12 | . 12 Terminals 12 | . 12 Fabricators . | . . Repair Stations . | . . Recycling Units . | . . Scanalyzers . | . . Garrison Access . | . . Terminal Hacks . | . . Fabricator Hacks . | . . Repair Station Hacks . | . . Recycling Unit Hacks . | . . Scanalyzer . | . . Garrison Access Hacks . | . . Unauthorized Hacks 18 | . 18 Terminals 7 | . 7 Track 2 | . 2 Assimilate 1 | . 1 Botnet 4 | . 4 Fabricators . | . . Repair Stations . | . . Recycling Units . | . . Scanalyzers . | . . Garrison Access . | . . Data Cores Recovered . | . . Used . | . . Hacking Detections 3 | . 3 Full Trace Events . | . . Feedback Events . | . . Feedback Blocked . | . . Robot Schematics Acquired . | . . Robots Built . | . . Matter . | . . Time . | . . Total Robot Build Rating . | . . Part Schematics Acquired . | . . Parts Built . | . . Matter . | . . Time . | . . Total Part Build Rating . | . . Parts Repaired . | . . Time . | . . Parts Recycled . | . . Recycled Matter . | . . Retrieved Matter . | . . Retrieved Components . | . . Parts Scanalyzed . | . . Part Schematics Acquired . | . . Parts Damaged . | . . Bothacking | -11 -10 ------------ Run | Scr Mat Used RIF Installer . | . . Robots Hacked . | . . Non-combat . | . . Combat . | . . Robot Hacks Applied . | . . Relay Couplers Released . | . . Robots Rewired . | . . Allies Hacked . | . . Hacks Repelled . | . . Allies | -11 -10 -------- Run | Scr Mat Total Allies 1 | . 1 Largest Group 1 | . 1 Highest-Rated Group 10 | . 10 Highest-Rated Ally 10 | . 10 Total Orders . | . . Ally Attacks . | . . Total Damage . | . . Kills . | . . Allies Corrupted . | . . Allies Melted . | . . Intel | -11 -10 ------- Run | Scr Mat Robot Analysis Total . | . . Derelict Logs Recovered . | . . Drone Launches . | . . Drone Recoveries . | . . Exploration | -11 -10 ------------- Run | Scr Mat Turns Passed 323 | 51 272 Spaces Moved 273 | 46 227 Core 2 | 2 . Treads . | . . Legs . | . . Wheels 271 | 44 227 Hover . | . . Flight . | . . Fastest Speed 50 | 50 90 Average Speed 89 | 88 90 Slowest Speed 90 | 90 90 Overloaded Moves . | . . Propulsion Burnouts . | . . Robots Hopped . | . . Cave-ins Triggered . | . . Exploration Rate (%) 24 | 3 45 Regions Visited 1 Branch Regions . Pre-discovered Areas . | . . Known Exits Taken . | . . Unknown Exits Taken 1 | 1 . Scrap Searched . | . . Spaces Dug . | . . Terrain Destroyed 6 | . 6 Melee . | . . Projectile . | . . AOE 6 | . 6 Actions | -11 -10 --------- Run | Scr Mat Total 324 | 55 269 Wait 14 | 1 13 Move 272 | 45 227 Hop . | . . Pick Up 6 | 4 2 Fast Attach 6 | 2 4 Attach 3 | 3 . Detach . | . . Swap . | . . Drop 2 | . 2 Fire 14 | . 14 Melee . | . . Ram 5 | . 5 Kick . | . . Crush . | . . Escape Stasis . | . . Rewire . | . . Trap . | . . Miscellaneous 2 | . 2 Route ------- -11/Scrapyard -10/Materials (discovered 1 exit: [*Min]) History --------- Turn | Location | Event 1 | -11/Scrapyard | Upgraded with Propulsion slot (x1) 1 | -11/Scrapyard | Upgraded with Utility slot (x1) 1 | -11/Scrapyard | Upgraded with Weapon slot (x1) 23 | -11/Scrapyard | Discovered new exit (range 15) 52 | -11/Scrapyard | Entered Materials 165 | -10/Materials | Discovered new exit (range 13) 276 | -10/Materials | Core integrity fell below 50% 301 | -10/Materials | Build established: Mutant 304 | -10/Materials | Core integrity fell below 20% 324 | -10/Materials | Destroyed by S-10 Pest with Light Assault Rifle Last Messages --------------- 00298_ K-01 Serf collects debris. 00298_ U-05 Engineer lays Concrete. 00298_ Slammed into S-10 Pest. 00299_ U-05 Engineer lays Concrete. 00299_ Slammed into S-10 Pest. 00300_ U-05 Engineer builds a Wall. 00300_ Slammed into S-10 Pest. 00301_ U-05 Engineer builds a Wall. 00301_ Slammed into S-10 Pest. 00304_ K-01 Serf cleans the Atomic Centrifuge. 00305_ U-05 Engineer lays Concrete. 00308_ K-01 Serf cleans the Atomic Centrifuge. 00313_ Used Protomatter to restore core integrity (+45, depleted) 00316_ R-06 Scavenger collects Flight Unit. 00319_ Acquired EMP Blaster. 00320_ R-06 Scavenger collects Flight Unit. 00320_ Destroyed Flight Unit. 00320_ G-34 Mercenary destroyed. 00320_ Door malfunctions. 00323_ Acquired EMP Blaster. Map ----- +----------------------------------------------------+ | | | | | | | | | | | ??????????????????????????? | | ??????????????????????????? | | ??????????????????????????? | | ??????????????????????????? | | ??????????????????????????? | | ??????????????????????????? | | ??????????????????????????? | | ??????????????????????????? | | ??????????????????????????? | | ??????????????????????????? | | ??????????????????????????? | | ??????????????????????????? | | ??????????????????????????? | | ??????????????????????????? | | ???????????????????????? | | ???????????????????????# | | ???????????????????????# | | ???????????????????????# | | ?###################???# | | ?#]]==!!## """ """ #???# | | ?#@ ==!!## """ """ #???# | | ?# ## """%""" #???# | | ?### !##= %%% #???# | | ???# [ss/% #???# | | ??#####*## % #???# | | ? ???# ##= r #???# | | # ""??# ## #???# | | # """?# ######+#####???# k | | # """ # ####! ####### | | # # | | # + | | # # % | | # ??### ## ##+####### | | # ?????#"%"####### ????? | | ??????##"%"##????# ""???? | | ??????# #????# """??? | | ??????# #????# """#?? | | ??????# +????#% """??? | | ??????# #????+ ""???? | | ??????# #????# ????? | | ??????### ###????# "????? | | ????????# #??????# "????? | | ????????# #??????#| "????? | | ????????? #??????# "????? | | ????????? #??????? ?????# | +----------------------------------------------------+ Best States ------------- Heat Dissipation 31 Energy Generation 10 Energy Capacity 450 Matter Stores 300 Matter Capacity 300 Sight Range 16 Terrain Scan Density 10 Weapon Shielding 33 Evasion (%) 42 Item Schematics ----------------- None Robot Schematics ------------------ None Fabricated ------------ Nothing Alien Tech Used ----------------- None Achievements -------------- None Challenges ------------ None RPGLIKE | -11 -10 --------- Run | Scr Mat Levels Raised . | . . XP Earned 3730 | 3000 730 XP Spent 3000 | 3000 . Upgrades 13 | 13 . Propulsion Slot 1 | 1 . Utility Slot 1 | 1 . Weapon Slot 1 | 1 . Core Integrity 6 | 6 . Heat Dissipation 1 | 1 . Inventory Capacity 1 | 1 . Ranged Accuracy 2 | 2 . Protomatter Created 15 | . 15 Integrity Restored 45 | . 45 Core 45 | . 45 Protomatter Decayed . | . . Game ------ Seed ProtonExperimentalBlaster Manual? 0 Play Time 00:10:00 Cumulative 33.4 hours Start 2020.01.02 @ 01:51:46 End 2020.01.02 @ 02:00:44 Sessions 1 Manual Loads 0 Difficulty Rogue Special Mode Winter2019/RPGLIKE Game No. 54 Rogue 54 Adventurer 0 Explorer 0 Win Type - Total 0 Types 0/0/0/0/0/0/0 Lore% 12 Gallery% 31 Achievement% 12 Wizard Run 0 Options --------- ASCII 0 Keyboard 0 Movement Mouse Keybinds 0 Fullscreen 1 Font 18/X11 Map View 76x50 Tactical HUD 1 Map Filters NONE Filters NONE Steam 1 RUN: aa29b8f2-5edb-46d1-8882-78c1789dba76